[Event "GER-ch Youth-U12 2024"]
[Site "Willingen"]
[Date "2024.05.19"]
[Round "2"]
[White "Vu Hoang Bach"]
[Black "Rau, Eduard"]
[Result "1-0"]
[ECO "D02"]
[WhiteElo "1677"]
[BlackElo "1756"]
[Annotator "NA"]
[PlyCount "99"]
[EventDate "2022.06.05"]
[EventType "swiss"]
[EventRounds "9"]
[EventCountry "GER"]
[SourceTitle "playchess.com"]
[Source "ChessBase"]
[SourceQuality "1"]
[TimeControl "40/4500+30:900+30"]

1. d4 {[%emt 0:00:00]} Nf6 {[%emt 0:00:00]} 2. Nf3 {[%emt 0:00:00]} d5 {[%emt 0:00:00]} 3. Bf4 {[%emt 0:00:51]} c5 {[%emt 0:00:00]} 4. e3 {[%emt 0:00:00]} Nc6 {[%emt 0:00:00]} 5. c3 {[%emt 0:00:00]} Qb6 {[%emt 0:00:00]} 6. Qc2 {[%emt 0:00:00]} g6 {[%emt 0:00:00]} 7. Nbd2 {[%emt 0:00:00]} Bg7 {[%emt 0:00:00]} 8. h3 {[%emt 0:05:56]} h5 {[%emt 0:00:00]} 9. Ne5 {[%emt 0:03:35]} Ne4 {[%emt 0:15:55]} 10. Nxe4 {[%emt 0:01:29]} dxe4 {[%emt 0:00:05]} 11. Nc4 {[%emt 0:01:08]} Qd8 {[%emt 0:00:29]} 12. O-O-O {[%emt 0:04:57]} cxd4 {[%emt 0:00:25]} 13. exd4 {[%emt 0:01:25]} Bf5 {[%emt 0:00:27]} 14. Ne3 {[%emt 0:00:23]} Rc8 {[%emt 0:00:19]} 15. Bb5 {[%emt 0:01:15]} O-O {[%emt 0:03:19]} 16. Bxc6 {[%emt 0:01:25]} Rxc6 {[%emt 0:00:02]} 17. Kb1 {[%emt 0:00:35]} Qb6 {[%emt 0:02:14]} 18. Nd5 {[%emt 0:01:09]} Qd8 {[%emt 0:00:01]} 19. Ne3 {[%emt 0:00:15]} Qa5 {[%emt 0:03:53]} 20. Nxf5 {[%emt 0:20:51]} gxf5 {[%emt 0:00:11]} 21. g4 {[%emt 0:02:04]} hxg4 {[%emt 0:05:15]} 22. hxg4 {[%emt 0:00:06]} Rfc8 {[%emt 0:07:46]} 23. Qd2 {[%emt 0:06:14]} fxg4 {[%emt 0:01:37]} 24. Bh6 {[%emt 0:01:47]} Ra6 {[%emt 0:04:00]} 25. a3 {[%emt 0:01:09]} Qf5 {[%emt 0:03:02]} 26. Ka1 {[%emt 0:00:59]} Rf6 {[%emt 0:11:17]} 27. Bg5 {[%emt 0:03:42]} Re6 {[%emt 0:02:07]} 28. Rh4 {[%emt 0:01:57]} Qg6 {[%emt 0:06:08]} 29. Rdh1 {[%emt 0:00:25]} f5 {[%emt 0:01:24]} 30. Bh6 {[%emt 0:02:24]} Bf6 {[%emt 0:00:43]} 31. R4h2 {[%emt 0:00:54]} Ra6 {[%emt 0:00:45]} 32. Bf4 {[%emt 0:01:02]} Bg7 {[%emt 0:00:15]} 33. Rh5 {[%emt 0:00:10]} Qf7 {[%emt 0:02:35]} 34. Be5 {[%emt 0:00:48]} Rf6 {[%emt 0:03:02]} 35. Qg5 {[%emt 0:00:23]} Qg6 {[%emt 0:02:08]} 36. Bxf6 {[%emt 0:00:16]} Qxf6 {[%emt 0:00:05]} 37. Rh8+ {[%emt 0:00:12]} Kf7 {[%emt 0:00:04]} 38. Qxf6+ {[%emt 0:00:10]} Kxf6 {[%emt 0:00:07]} 39. Rxc8 {[%emt 0:00:07]} Kg5 {[%emt 0:00:08]} 40. Rg8 {[%emt 0:00:15]} Kf4 {[%emt 0:00:06]} 41. Rxg7 {[%emt 0:15:39]} Kf3 {[%emt 0:15:06]} 42. Rf7 {[%emt 0:01:21]} f4 {[%emt 0:00:04]} 43. Rh2 {[%emt 0:00:47]} e3 {[%emt 0:00:06]} 44. fxe3 {[%emt 0:00:04]} g3 {[%emt 0:00:05]} 45. Rhh7 {[%emt 0:00:46]} Kxe3 {[%emt 0:00:08]} 46. Rxe7+ {[%emt 0:00:04]} Kf2 {[%emt 0:00:02]} 47. Rhg7 {[%emt 0:00:10]} g2 {[%emt 0:00:04]} 48. Ref7 {[%emt 0:00:04]} f3 {[%emt 0:00:05]} 49. Rxf3+ {[%emt 0:00:02]} Kxf3 {[%emt 0:00:04]} 50. Rxg2 {[%emt 0:00:06]} 1-0

[Event "GER-ch Youth-U12 2024"]
[Site "Willingen"]
[Date "2024.05.19"]
[Round "2"]
[White "Obermair, Hannes"]
[Black "Vinogradov, Ilia"]
[Result "1/2-1/2"]
[ECO "A25"]
[WhiteElo "1668"]
[BlackElo "1723"]
[Annotator "NA"]
[PlyCount "80"]
[EventDate "2022.06.05"]
[EventType "swiss"]
[EventRounds "9"]
[EventCountry "GER"]
[SourceTitle "playchess.com"]
[Source "ChessBase"]
[SourceQuality "1"]
[TimeControl "40/4500+30:900+30"]

1. c4 {[%emt 0:00:00]} e5 {[%emt 0:00:00]} 2. Nc3 {[%emt 0:00:00]} Nc6 {[%emt 0:00:00]} 3. g3 {[%emt 0:00:00]} Bc5 {[%emt 0:00:00]} 4. Bg2 {[%emt 0:00:00]} a6 {[%emt 0:00:00]} 5. e3 {[%emt 0:00:00]} Ba7 {[%emt 0:00:00]} 6. Nge2 {[%emt 0:00:00]} d6 {[%emt 0:00:00]} 7. O-O {[%emt 0:00:00]} h5 {[%emt 0:00:00]} 8. h4 {[%emt 0:00:00]} g5 {[%emt 0:00:00]} 9. hxg5 {[%emt 0:00:00]} Qxg5 {[%emt 0:00:00]} 10. d4 {[%emt 0:00:00]} h4 {[%emt 0:07:12]} 11. Ne4 {[%emt 0:16:33]} Qh6 {[%emt 0:02:40]} 12. f3 {[%emt 0:06:08]} hxg3 {[%emt 0:02:34]} 13. N4xg3 {[%emt 0:01:51]} f5 {[%emt 0:21:07]} 14. Kf2 {[%emt 0:06:56]} f4 {[%emt 0:05:54]} 15. exf4 {[%emt 0:03:34]} Nxd4 {[%emt 0:06:05]} 16. Be3 {[%emt 0:08:52]} Nxe2 {[%emt 0:09:04]} 17. Qxe2 {[%emt 0:05:33]} Qxf4 {[%emt 0:02:35]} 18. Bxa7 {[%emt 0:02:03]} Rxa7 {[%emt 0:00:29]} 19. Rh1 {[%emt 0:02:56]} Qd4+ {[%emt 0:00:47]} 20. Kf1 {[%emt 0:01:37]} Rxh1+ {[%emt 0:00:34]} 21. Nxh1 {[%emt 0:00:59]} Bd7 {[%emt 0:02:15]} 22. Rd1 {[%emt 0:01:37]} Qf4 {[%emt 0:01:25]} 23. Nf2 {[%emt 0:01:40]} Be6 {[%emt 0:02:03]} 24. Ne4 {[%emt 0:01:38]} Nh6 {[%emt 0:01:54]} 25. Qd3 {[%emt 0:04:21]} Nf5 {[%emt 0:02:33]} 26. Kf2 {[%emt 0:03:43]} Qh4+ {[%emt 0:02:02]} 27. Kg1 {[%emt 0:01:42]} Ra8 {[%emt 0:01:56]} 28. Nf2 {[%emt 0:01:29]} Qxc4 {[%emt 0:04:43]} 29. Qxc4 {[%emt 0:00:53]} Bxc4 {[%emt 0:00:08]} 30. Rc1 {[%emt 0:00:46]} Bxa2 {[%emt 0:00:36]} 31. Rxc7 {[%emt 0:00:23]} Bd5 {[%emt 0:01:28]} 32. Ne4 {[%emt 0:02:25]} Kd8 {[%emt 0:02:10]} 33. Rh7 {[%emt 0:00:50]} b5 {[%emt 0:05:39]} 34. Nf6 {[%emt 0:00:59]} Bc6 {[%emt 0:02:19]} 35. f4 {[%emt 0:01:38]} Bxg2 {[%emt 0:01:57]} 36. Kxg2 {[%emt 0:00:21]} Rb8 {[%emt 0:00:25]} 37. Nd5 {[%emt 0:01:14]} Kc8 {[%emt 0:00:50]} 38. Rc7+ {[%emt 0:00:43]} Kd8 {[%emt 0:00:04]} 39. Rh7 {[%emt 0:00:04]} Kc8 {[%emt 0:00:47]} 40. Rc7+ {[%emt 0:00:09]} Kd8 {[%emt 0:00:23]} 1/2-1/2

[Event "GER-ch Youth-U12 2024"]
[Site "Willingen"]
[Date "2024.05.19"]
[Round "2"]
[White "Prashanthakumar, Arnesh"]
[Black "Balashvili, Amiran"]
[Result "1/2-1/2"]
[ECO "C50"]
[WhiteElo "1634"]
[BlackElo "1682"]
[Annotator "NA"]
[PlyCount "53"]
[EventDate "2022.06.05"]
[EventType "swiss"]
[EventRounds "9"]
[EventCountry "GER"]
[SourceTitle "playchess.com"]
[Source "ChessBase"]
[SourceQuality "1"]
[TimeControl "40/4500+30:900+30"]

1. e4 {[%emt 0:00:00]} e5 {[%emt 0:00:00]} 2. Bc4 {[%emt 0:00:00]} Nf6 {[%emt 0:00:00]} 3. Nc3 {[%emt 0:00:00]} Bc5 {[%emt 0:00:00]} 4. d3 {[%emt 0:00:00]} Nc6 {[%emt 0:00:00]} 5. Nf3 {[%emt 0:00:00]} d6 {[%emt 0:00:00]} 6. Bg5 {[%emt 0:00:00]} Be6 {[%emt 0:00:00]} 7. Bb3 {[%emt 0:00:00]} Qd7 {[%emt 0:00:00]} 8. h3 {[%emt 0:00:00]} O-O-O {[%emt 0:00:00]} 9. Qd2 {[%emt 0:00:00]} h6 {[%emt 0:00:00]} 10. Be3 {[%emt 0:00:00]} Bxe3 {[%emt 0:00:00]} 11. Qxe3 {[%emt 0:00:00]} a6 {[%emt 0:00:00]} 12. O-O-O {[%emt 0:00:00]} Bxb3 {[%emt 0:00:00]} 13. axb3 {[%emt 0:02:09]} Qe6 {[%emt 0:00:00]} 14. Nh4 {[%emt 0:05:41]} g6 {[%emt 0:05:24]} 15. Nf3 {[%emt 0:03:04]} d5 {[%emt 0:02:00]} 16. exd5 {[%emt 0:01:46]} Nxd5 {[%emt 0:00:05]} 17. Qd2 {[%emt 0:02:17]} g5 {[%emt 0:05:36]} 18. Rhe1 {[%emt 0:01:27]} f6 {[%emt 0:05:24]} 19. Re4 {[%emt 0:11:52]} Nf4 {[%emt 0:05:27]} 20. Rg1 {[%emt 0:04:08]} Qg8 {[%emt 0:11:44]} 21. Qe1 {[%emt 0:02:13]} g4 {[%emt 0:06:20]} 22. hxg4 {[%emt 0:02:27]} Qxg4 {[%emt 0:00:05]} 23. Qe3 {[%emt 0:03:22]} Qh5 {[%emt 0:06:08]} 24. Ne2 {[%emt 0:03:55]} Nxe2+ {[%emt 0:02:14]} 25. Qxe2 {[%emt 0:01:02]} Rhg8 {[%emt 0:03:41]} 26. Rh4 {[%emt 0:01:12]} Qg6 {[%emt 0:00:43]} 27. Re4 {[%emt 0:08:22]} 1/2-1/2

[Event "GER-ch Youth-U12 2024"]
[Site "Willingen"]
[Date "2024.05.19"]
[Round "2"]
[White "Doeding, Alexander"]
[Black "König, Lian"]
[Result "1-0"]
[ECO "C50"]
[WhiteElo "1633"]
[BlackElo "1180"]
[Annotator "NA"]
[PlyCount "40"]
[EventDate "2022.06.05"]
[EventType "swiss"]
[EventRounds "9"]
[EventCountry "GER"]
[SourceTitle "playchess.com"]
[Source "ChessBase"]
[SourceQuality "1"]
[TimeControl "40/4500+30:900+30"]

1. e4 {[%emt 0:00:00]} e5 {[%emt 0:00:00]} 2. Nf3 {[%emt 0:00:00]} Nc6 {[%emt 0:00:00]} 3. d4 {[%emt 0:00:00]} exd4 {[%emt 0:00:00]} 4. Bc4 {[%emt 0:00:00]} Be7 {[%emt 0:00:00]} 5. Nxd4 {[%emt 0:00:00]} Nf6 {[%emt 0:00:00]} 6. Nc3 {[%emt 0:00:00]} d6 {[%emt 0:00:00]} 7. Nxc6 {[%emt 0:00:00]} bxc6 {[%emt 0:00:00]} 8. h3 {[%emt 0:00:00]} O-O {[%emt 0:00:00]} 9. O-O {[%emt 0:00:00]} h6 {[%emt 0:00:00]} 10. Qf3 {[%emt 0:00:00]} a5 {[%emt 0:00:52]} 11. Bf4 {[%emt 0:00:00]} Be6 {[%emt 0:06:24]} 12. Bxe6 {[%emt 0:00:00]} fxe6 {[%emt 0:00:15]} 13. Qd3 {[%emt 0:00:00]} d5 {[%emt 0:06:06]} 14. exd5 {[%emt 0:00:00]} cxd5 {[%emt 0:01:42]} 15. Rfe1 {[%emt 0:02:05]} Ne8 {[%emt 0:08:12]} 16. Bh2 {[%emt 0:02:23]} Qc8 {[%emt 0:03:27]} 17. Nxd5 {[%emt 0:02:49]} exd5 {[%emt 0:02:59]} 18. Rxe7 {[%emt 0:00:18]} c6 {[%emt 0:02:35]} 19. Rae1 {[%emt 0:01:02]} Qd8 {[%emt 0:08:41]} 20. Qg6 {[%emt 0:01:20]} Ra6 {[%emt 0:08:21]} 1-0

[Event "GER-ch Youth-U12 2024"]
[Site "Willingen"]
[Date "2024.05.19"]
[Round "2"]
[White "Heins, Simon"]
[Black "Yozgyur, Ediz"]
[Result "1-0"]
[ECO "B76"]
[WhiteElo "1626"]
[BlackElo "1789"]
[Annotator "NA RC"]
[PlyCount "69"]
[EventDate "2022.06.05"]
[EventType "swiss"]
[EventRounds "9"]
[EventCountry "GER"]
[SourceTitle "playchess.com"]
[Source "ChessBase"]
[SourceQuality "1"]
[TimeControl "40/4500+30:900+30"]

1. e4 {[%emt 0:00:00]} c5 {[%emt 0:00:00]} 2. Nf3 {[%emt 0:00:00]} d6 {[%emt 0:00:00]} 3. d4 {[%emt 0:00:00]} cxd4 {[%emt 0:00:00]} 4. Nxd4 {[%emt 0:00:00]} Nf6 {[%emt 0:00:00]} 5. Nc3 {[%emt 0:00:00]} g6 {[%emt 0:00:00]} 6. f3 {[%emt 0:00:00]} Bg7 {[%emt 0:00:00]} 7. Be3 {[%emt 0:00:00]} O-O {[%emt 0:00:00]} 8. Qd2 {[%emt 0:00:00]} Nc6 {[%emt 0:00:00]} 9. O-O-O {[%emt 0:00:00]} d5 {[%emt 0:00:00]} 10. Nxc6 {[%emt 0:00:00]} bxc6 {[%emt 0:00:00]} 11. exd5 {[%emt 0:00:00]} cxd5 {[%emt 0:00:00]} 12. Nxd5 {[%emt 0:00:00]} Nxd5 {[%emt 0:00:00]} 13. Qxd5 {[%emt 0:00:00]} Qc7 {[%emt 0:00:15]} 14. Qxa8 {[%emt 0:00:00]} Bf5 {[%emt 0:00:09]} 15. Qxf8+ {[%emt 0:00:00]} Kxf8 {[%emt 0:00:12]} 16. Bd3 {[%emt 0:00:00]} Qe5 {[%emt 0:01:21]} 17. Bxf5 {[%emt 0:00:00]} Qxb2+ {[%emt 0:00:08]} 18. Kd2 {[%emt 0:00:00]} Qc3+ {[%emt 0:01:12]} 19. Ke2 {[%emt 0:00:00]} e6 {[%emt 0:03:10]} 20. Bd3 {[%emt 0:03:32]} Qe5 {[%emt 0:03:50]} 21. Kf2 {[%emt 0:01:22]} f5 {[%emt 0:01:33]} 22. f4 {[%emt 0:00:37]} Qc7 {[%emt 0:04:04]} 23. Rhe1 {[%emt 0:05:02]} g5 {[%emt 0:02:34]} 24. Kg1 {[%emt 0:06:09]} gxf4 {[%emt 0:04:24]} 25. Bf2 {[%emt 0:00:22]} Be5 {[%emt 0:05:37]} 26. Be2 {[%emt 0:05:28]} Qxc2 {[%emt 0:07:29]} 27. Bf3 {[%emt 0:05:36]} Qc7 {[%emt 0:08:51]} 28. Rc1 {[%emt 0:00:42]} Qa5 {[%emt 0:00:57]} 29. Bc5+ {[%emt 0:00:10]} Kf7 {[%emt 0:01:44]} 30. Rxe5 {[%emt 0:00:05]} Qd2 {[%emt 0:00:37]} 31. Rce1 {[%emt 0:00:26]} Qxa2 {[%emt 0:00:47]} 32. Rxe6 {[%emt 0:00:06]} a5 {[%emt 0:00:37]} 33. Bh5+ {[%emt 0:00:09]} Kg7 {[%emt 0:00:11]} 34. Bd4+ {[%emt 0:00:05]} Kf8 {[%emt 0:00:38]} 35. Re8# {[%emt 0:00:33]} 1-0

[Event "GER-ch Youth-U12 2024"]
[Site "Willingen"]
[Date "2024.05.19"]
[Round "2"]
[White "Schmidt, Jossip"]
[Black "Leonhardt, Max"]
[Result "1-0"]
[ECO "D41"]
[WhiteElo "1603"]
[BlackElo "1691"]
[Annotator "NA RC"]
[PlyCount "57"]
[EventDate "2022.06.05"]
[EventType "swiss"]
[EventRounds "9"]
[EventCountry "GER"]
[SourceTitle "playchess.com"]
[Source "ChessBase"]
[SourceQuality "1"]
[TimeControl "40/4500+30:900+30"]

1. d4 {[%emt 0:00:00]} Nf6 {[%emt 0:00:00]} 2. c4 {[%emt 0:00:00]} e6 {[%emt 0:00:00]} 3. Nc3 {[%emt 0:00:00]} d5 {[%emt 0:00:00]} 4. Nf3 {[%emt 0:00:00]} c5 {[%emt 0:00:00]} 5. cxd5 {[%emt 0:00:00]} Nxd5 {[%emt 0:00:00]} 6. Nxd5 {[%emt 0:00:00]} Qxd5 {[%emt 0:00:00]} 7. e3 {[%emt 0:00:00]} cxd4 {[%emt 0:00:00]} 8. Nxd4 {[%emt 0:00:00]} e5 {[%emt 0:00:00]} 9. Qf3 {[%emt 0:00:00]} Bb4+ {[%emt 0:00:00]} 10. Ke2 {[%emt 0:00:41]} e4 {[%emt 0:00:00]} 11. Qg3 {[%emt 0:02:24]} h5 {[%emt 0:00:00]} 12. Qxg7 {[%emt 0:04:46]} Rf8 {[%emt 0:00:00]} 13. f3 {[%emt 0:03:59]} exf3+ {[%emt 0:00:00]} 14. gxf3 {[%emt 0:01:59]} b6 {[%emt 0:00:33]} 15. Bg2 {[%emt 0:01:25]} f5 {[%emt 0:06:34]} 16. f4 {[%emt 0:01:04]} Qc4+ {[%emt 0:00:18]} 17. Kf2 {[%emt 0:00:17]} Rg8 {[%emt 0:09:36]} 18. Qe5+ {[%emt 0:01:27]} Be7 {[%emt 0:00:07]} 19. Bd5 {[%emt 0:01:40]} Qd3 {[%emt 0:02:30]} 20. Bxa8 {[%emt 0:02:57]} Nd7 {[%emt 0:00:09]} 21. Qc7 {[%emt 0:00:55]} Ba6 {[%emt 0:03:29]} 22. Bc6 {[%emt 0:01:35]} Bh4+ {[%emt 0:05:22]} 23. Kf3 {[%emt 0:00:20]} Rg7 {[%emt 0:01:25]} 24. Qe5+ {[%emt 0:01:11]} Re7 {[%emt 0:01:04]} 25. Qh8+ {[%emt 0:00:36]} Kf7 {[%emt 0:00:11]} 26. Qxh5+ {[%emt 0:00:15]} Kf8 {[%emt 0:02:02]} 27. Qh8+ {[%emt 0:01:03]} Kf7 {[%emt 0:00:21]} 28. Bd5+ {[%emt 0:00:18]} Kg6 {[%emt 0:00:54]} 29. Rg1+ {[%emt 0:00:13]} 1-0

[Event "GER-ch Youth-U12 2024"]
[Site "Willingen"]
[Date "2024.05.19"]
[Round "2"]
[White "Moskalenko, Michael"]
[Black "Schellinger, Florian"]
[Result "1-0"]
[ECO "E30"]
[WhiteElo "1574"]
[BlackElo "863"]
[Annotator "NA RC"]
[PlyCount "71"]
[EventDate "2022.06.05"]
[EventType "swiss"]
[EventRounds "9"]
[EventCountry "GER"]
[SourceTitle "playchess.com"]
[Source "ChessBase"]
[SourceQuality "1"]
[TimeControl "40/4500+30:900+30"]

1. d4 {[%emt 0:00:00]} e6 {[%emt 0:00:00]} 2. c4 {[%emt 0:00:00]} Nf6 {[%emt 0:00:00]} 3. Nf3 {[%emt 0:00:00]} Nc6 {[%emt 0:00:00]} 4. Nc3 {[%emt 0:00:00]} Bb4 {[%emt 0:00:00]} 5. Bg5 {[%emt 0:00:00]} h6 {[%emt 0:00:00]} 6. Bh4 {[%emt 0:00:00]} d5 {[%emt 0:00:00]} 7. e3 {[%emt 0:00:00]} O-O {[%emt 0:00:00]} 8. Bd3 {[%emt 0:00:00]} dxc4 {[%emt 0:00:00]} 9. Bxc4 {[%emt 0:00:00]} Bxc3+ {[%emt 0:00:00]} 10. bxc3 {[%emt 0:00:00]} Qd6 {[%emt 0:00:00]} 11. Bxf6 {[%emt 0:00:00]} gxf6 {[%emt 0:00:00]} 12. Qd2 {[%emt 0:00:00]} Qe7 {[%emt 0:00:00]} 13. e4 {[%emt 0:00:00]} e5 {[%emt 0:00:00]} 14. d5 {[%emt 0:00:00]} Nd8 {[%emt 0:00:00]} 15. Bb3 {[%emt 0:00:00]} Kh7 {[%emt 0:00:00]} 16. Nh4 {[%emt 0:10:08]} Rg8 {[%emt 0:01:13]} 17. O-O-O {[%emt 0:01:59]} Bd7 {[%emt 0:01:01]} 18. f4 {[%emt 0:01:16]} exf4 {[%emt 0:01:07]} 19. Qxf4 {[%emt 0:00:10]} Rc8 {[%emt 0:01:11]} 20. Bc2 {[%emt 0:01:15]} Rg7 {[%emt 0:04:33]} 21. e5+ {[%emt 0:00:47]} Kg8 {[%emt 0:00:27]} 22. exf6 {[%emt 0:00:09]} Rg4 {[%emt 0:01:02]} 23. Qxg4+ {[%emt 0:01:09]} Bxg4 {[%emt 0:00:23]} 24. fxe7 {[%emt 0:00:04]} Bxd1 {[%emt 0:00:30]} 25. e8=Q+ {[%emt 0:00:12]} Kg7 {[%emt 0:00:48]} 26. Nf5+ {[%emt 0:00:17]} Kf6 {[%emt 0:00:26]} 27. Qe7+ {[%emt 0:00:10]} Kg6 {[%emt 0:00:22]} 28. Nh4+ {[%emt 0:00:13]} Kg7 {[%emt 0:00:16]} 29. Kxd1 {[%emt 0:00:24]} c6 {[%emt 0:00:52]} 30. Qe5+ {[%emt 0:00:14]} f6 {[%emt 0:00:18]} 31. Qe7+ {[%emt 0:00:12]} Nf7 {[%emt 0:00:15]} 32. Nf5+ {[%emt 0:00:21]} Kg6 {[%emt 0:00:12]} 33. Nd6+ {[%emt 0:00:29]} f5 {[%emt 0:00:21]} 34. Qxf7+ {[%emt 0:00:07]} Kg5 {[%emt 0:00:32]} 35. Qxf5+ {[%emt 0:00:07]} Kh4 {[%emt 0:00:19]} 36. g3# {[%emt 0:00:06]} 1-0

[Event "GER-ch Youth-U12 2024"]
[Site "Willingen"]
[Date "2024.05.19"]
[Round "2"]
[White "Grabowski, Joshua"]
[Black "Rodriguez Klasen, Ennio"]
[Result "0-1"]
[ECO "D00"]
[WhiteElo "1532"]
[BlackElo "1802"]
[Annotator "NA RC"]
[PlyCount "80"]
[EventDate "2022.06.05"]
[EventType "swiss"]
[EventRounds "9"]
[EventCountry "GER"]
[SourceTitle "playchess.com"]
[Source "ChessBase"]
[SourceQuality "1"]
[TimeControl "40/4500+30:900+30"]

1. d4 {[%emt 0:00:00]} Nf6 {[%emt 0:00:00]} 2. Nc3 {[%emt 0:00:00]} d5 {[%emt 0:00:00]} 3. Bf4 {[%emt 0:00:00]} a6 {[%emt 0:00:00]} 4. e3 {[%emt 0:00:00]} Bf5 {[%emt 0:00:00]} 5. Bd3 {[%emt 0:00:00]} Bxd3 {[%emt 0:00:00]} 6. Qxd3 {[%emt 0:00:00]} e6 {[%emt 0:00:00]} 7. Nf3 {[%emt 0:00:00]} Bb4 {[%emt 0:00:00]} 8. O-O {[%emt 0:00:00]} O-O {[%emt 0:00:00]} 9. a3 {[%emt 0:00:00]} Bxc3 {[%emt 0:00:00]} 10. Qxc3 {[%emt 0:00:00]} Nc6 {[%emt 0:06:28]} 11. Ne5 {[%emt 0:00:00]} Nxe5 {[%emt 0:04:36]} 12. Bxe5 {[%emt 0:00:00]} Ne4 {[%emt 0:01:43]} 13. Qxc7 {[%emt 0:00:00]} Qxc7 {[%emt 0:00:15]} 14. Bxc7 {[%emt 0:00:00]} Rfc8 {[%emt 0:00:10]} 15. Ba5 {[%emt 0:00:00]} Rxc2 {[%emt 0:01:47]} 16. f3 {[%emt 0:00:49]} Nd6 {[%emt 0:00:34]} 17. Bc3 {[%emt 0:00:44]} Nc4 {[%emt 0:00:53]} 18. Rfe1 {[%emt 0:05:18]} Rc8 {[%emt 0:05:04]} 19. Rab1 {[%emt 0:05:58]} b5 {[%emt 0:00:50]} 20. Kf1 {[%emt 0:01:19]} Nxa3 {[%emt 0:07:12]} 21. Ra1 {[%emt 0:01:13]} Nc4 {[%emt 0:06:12]} 22. Re2 {[%emt 0:00:21]} Rxe2 {[%emt 0:00:57]} 23. Kxe2 {[%emt 0:00:07]} Nxb2 {[%emt 0:01:20]} 24. Rxa6 {[%emt 0:00:48]} g6 {[%emt 0:00:46]} 25. Kd2 {[%emt 0:01:39]} Nc4+ {[%emt 0:00:27]} 26. Kd3 {[%emt 0:00:30]} Nxe3 {[%emt 0:01:21]} 27. Kxe3 {[%emt 0:01:54]} Rxc3+ {[%emt 0:00:05]} 28. Kd2 {[%emt 0:00:06]} Rc4 {[%emt 0:01:12]} 29. Kd3 {[%emt 0:00:10]} Rb4 {[%emt 0:00:09]} 30. Rb6 {[%emt 0:00:24]} Rb2 {[%emt 0:00:21]} 31. g4 {[%emt 0:00:14]} Rb3+ {[%emt 0:00:56]} 32. Ke2 {[%emt 0:00:09]} b4 {[%emt 0:00:58]} 33. h4 {[%emt 0:00:07]} Rb2+ {[%emt 0:04:14]} 34. Ke3 {[%emt 0:00:43]} b3 {[%emt 0:01:33]} 35. h5 {[%emt 0:00:15]} gxh5 {[%emt 0:00:31]} 36. gxh5 {[%emt 0:00:02]} Kg7 {[%emt 0:00:14]} 37. Kd3 {[%emt 0:00:21]} Rb1 {[%emt 0:00:53]} 38. Kc3 {[%emt 0:00:12]} Rf1 {[%emt 0:00:06]} 39. Rxb3 {[%emt 0:00:14]} Rxf3+ {[%emt 0:00:05]} 40. Kc2 {[%emt 0:00:07]} Rxb3 {[%emt 0:00:04]} 0-1